bitfinex/quotes_ETHUSD_20240816
["timestamp","ask_amount","ask_price","bid_price","bid_amount"]
[1723815537088,4.05113,2619.3,2618.7,3.81855]
[1723815537303,3.81759,2619.5,2618.7,3.81855]
[1723815537574,3.81759,2619.5,2618.7,3.81867]
[1723815537575,3.81761,2619.5,2618.7,3.81867]
[1723815537722,3.81781,2619.3,2618.7,3.81867]
[1723815537929,3.81781,2619.3,2618.6,3.81878]
[1723815538098,3.81781,2619.3,2618.6,3.81872]
[1723815538294,3.81804,2619.2,2618.5,7.63777]
[1723815538500,3.81804,2619.2,2618.5,3.81888]
[1723815538697,3.81811,2619.1,2618.5,3.81888]
[1723815538922,3.81798,2619.2,2618.5,3.81888]
[1723815539113,0.42377669,2619.2,2618.2,3.0]
[1723815539432,3.8182,2619.1,2618.4,3.819]
[1723815539601,3.81741,2619.6,2618.2,3.81933]
[1723815539788,3.8182,2619.1,2618.5,3.8189]
[1723815539982,6.19296,2619.4,2618.8,3.81845]
[1723815540192,0.931741,2619.5,2618.8,3.81845]
[1723815540193,3.81763,2619.5,2619.0,3.81824]
[1723815540496,3.81762,2619.5,2618.8,3.81844]
[1723815540713,2.3753,2619.8,2619.2,3.81785]
[1723815541015,3.81582,2620.7,2618.8,2.661844]
[1723815541016,2.4004,2620.2,2619.6,3.81735]
[1723815541180,3.81615,2620.5,2619.7,3.81714]
[1723815541401,3.81678,2620.1,2619.5,3.81743]
[1723815541582,0.381615,2620.5,2619.5,3.81743]
[1723815541583,0.381615,2620.5,2619.5,2.275]
[1723815541801,2.4004,2620.6,2619.8,3.81707]
[1723815542010,3.81608,2620.5,2619.8,3.817]
[1723815542234,3.81658,2620.2,2619.6,3.81732]
[1723815542389,3.8168,2620.0,2619.4,6.81754]
[1723815542883,3.81717,2619.8,2619.2,3.81793]
[1723815543741,3.81731,2619.7,2619.0,3.0]
[1723815544029,3.81717,2619.8,2618.9,0.6480444]
[1723815544030,3.81747,2619.6,2618.9,6.81831]
[1723815544185,4.867566,2619.8,2619.0,3.81824]
[1723815544385,3.81657,2620.2,2619.6,3.81729]
[1723815544598,3.81657,2620.2,2618.9,4.311752]
[1723815544599,3.81657,2620.2,2619.4,3.81753]
[1723815544916,3.81665,2620.1,2619.4,3.81753]
[1723815545247,3.81628,2620.4,2619.6,3.81728]
[1723815545388,2.4886,2620.5,2619.4,2.756253]
[1723815545589,2.4886,2620.5,2619.7,3.81722]
[1723815545795,2.4886,2620.5,2619.7,3.81711]
[1723815546142,2.4886,2620.5,2619.9,3.81685]
[1723815546290,2.4886,2620.5,2619.7,3.81714]
[1723815546486,3.8166,2620.2,2619.6,3.81725]
[1723815546731,0.24886,2620.4,2619.7,3.81714]
[1723815546732,3.81638,2620.3,2619.7,3.81714]
[1723815546918,2.4886,2620.5,2619.9,3.81679]
[1723815547120,3.81595,2620.6,2619.9,4.198469]
[1723815547290,3.81585,2620.7,2620.0,3.8167]
[1723815547491,3.81614,2620.5,2619.9,3.81679]
[1723815547725,3.81595,2620.6,2620.0,3.81677]
[1723815547934,4.441075,2620.7,2620.1,3.81662]
[1723815548242,3.81582,2620.7,2619.5,3.81743]
[1723815548404,7.63258,2620.4,2619.6,3.0]
[1723815548585,3.81624,2620.4,2619.4,2.3745]
[1723815548807,3.81659,2620.2,2619.6,3.81737]
[1723815549070,6.29564,2620.2,2619.0,6.13513]
[1723815549191,3.81761,2619.5,2618.8,3.81844]
[1723815549542,0.629564,2620.1,2619.3,3.81773]
[1723815549543,4.996244,2620.1,2619.3,3.81773]
[1723815549742,4.996244,2620.1,2619.3,3.81772]
[1723815549743,3.81687,2620.0,2619.3,3.81772]
[1723815549895,3.81724,2619.7,2618.9,3.8183]
[1723815550093,3.81749,2619.6,2618.9,7.6366]
[1723815550327,3.81749,2619.6,2618.9,3.8183]
[1723815550508,3.81752,2619.5,2618.7,4.05024]
[1723815550840,3.81782,2619.3,2618.7,4.05024]
[1723815551037,3.81782,2619.3,2618.5,3.81891]
[1723815551038,3.81811,2619.1,2618.5,3.81889]
[1723815551193,3.81782,2619.3,2618.2,2.317]
[1723815551392,3.81754,2619.5,2618.9,3.81827]
[1723815551591,4.36668,2620.1,2618.3,0.317616]
[1723815551592,3.81701,2619.9,2618.3,0.79437602]
[1723815551834,3.81701,2619.9,2619.2,3.81785]
[1723815552002,2.2847,2620.0,2619.4,3.81758]
[1723815552003,3.81681,2620.0,2619.4,3.81758]
[1723815552347,3.81676,2620.1,2619.6,3.81737]
[1723815552492,3.81659,2620.2,2619.6,3.81737]
[1723815552747,3.81643,2620.3,2619.4,3.81756]
[1723815552748,3.81672,2620.1,2619.4,3.81756]
[1723815552995,0.5437257,2620.3,2619.1,6.81798]
[1723815553194,0.5437257,2620.3,2619.1,3.0]
[1723815553195,3.81717,2619.8,2619.1,3.0]
[1723815553493,3.81717,2619.8,2618.5,3.81893]
[1723815553494,3.81761,2619.5,2618.6,2.3396]
[1723815553705,3.81761,2619.5,2618.8,3.81845]
[1723815553850,3.81794,2619.3,2618.6,5.3396]
[1723815554050,7.63588,2619.3,2618.7,3.81859]
[1723815554388,3.81818,2619.1,2618.5,3.81886]
[1723815554695,3.8179,2619.3,2618.5,3.81886]
[1723815554901,3.81812,2619.1,2618.3,3.81917]
[1723815555046,3.81818,2619.1,2618.3,3.81917]
[1723815555248,3.81855,2618.8,2618.3,3.81917]
[1723815555691,3.81818,2619.1,2618.3,3.81917]
[1723815556009,3.81828,2619.0,2618.4,3.81903]
[1723815556577,3.81762,2619.5,2618.5,3.8189]
[1723815556803,3.8179,2619.3,2618.6,0.38189]
[1723815557013,3.81796,2619.2,2618.2,5.4022]
[1723815557228,3.81759,2619.5,2618.4,3.81908]
[1723815557522,3.81783,2619.3,2618.7,3.8186]
[1723815557727,6.18452,2619.6,2618.9,3.81825]
[1723815557889,5.29064959,2620.2,2618.9,3.81825]
[1723815557890,6.16304,2620.0,2618.9,2.4301]
[1723815558226,3.81673,2620.1,2619.4,3.81754]
[1723815558521,3.81673,2620.1,2619.5,3.81751]
[1723815559028,2.3462,2620.4,2619.7,3.81722]
[1723815559176,2.3462,2620.4,2619.5,3.81744]
[1723815559177,3.81651,2620.2,2619.5,3.8174]
[1723815559384,3.81648,2620.3,2619.5,3.8174]
[1723815559606,3.81659,2620.2,2619.6,3.81727]
[1723815559815,10.21345,2620.4,2619.6,3.81727]
[1723815559978,6.39711,2620.4,2619.7,3.81708]
[1723815560180,2.58082,2620.4,2619.6,3.81727]
[1723815560418,3.81664,2620.2,2619.6,7.63456]
[1723815560610,3.81664,2620.2,2619.1,6.81806]
[1723815560611,3.81653,2620.2,2619.4,3.81759]
[1723815560882,3.81667,2620.1,2619.5,3.81749]
[1723815561430,2.3462,2620.4,2619.7,3.81715]
[1723815561584,2.3462,2620.4,2619.8,4.198705]
[1723815561783,6.16249,2620.4,2619.7,3.81715]
[1723815562119,3.8164,2620.3,2619.5,3.81747]
[1723815562291,0.61626,2620.3,2619.5,3.81747]
[1723815562491,7.6332,2620.2,2619.5,7.63489]
[1723815562752,2.3462,2620.4,2619.3,3.81767]
[1723815562892,3.81694,2619.9,2619.4,3.0]
[1723815563228,0.78462,2620.3,2618.7,3.81859]
[1723815563229,3.81746,2619.6,2618.7,3.81859]
[1723815563378,0.381694,2619.8,2618.8,0.07636238]
[1723815563725,3.81658,2620.2,2619.2,3.81786]
[1723815563920,3.81703,2619.9,2619.3,3.81781]
[1723815564091,3.81719,2619.8,2619.2,3.81786]
[1723815564279,3.81751,2619.6,2619.0,3.81815]
[1723815564479,2.3467,2619.9,2619.1,3.81799]
[1723815564480,3.81713,2619.8,2619.1,3.81799]
[1723815564679,3.81688,2620.0,2618.9,6.19106]
[1723815564680,3.81691,2620.0,2618.9,6.19106]
[1723815565029,2.3467,2620.3,2619.8,3.81707]
[1723815565229,2.3467,2620.3,2619.1,3.81807]
[1723815565230,3.81597,2620.6,2619.9,3.81689]
[1723815565525,7.63202,2620.6,2619.9,3.81682]
[1723815565707,0.616267,2620.5,2619.9,3.81682]
[1723815565876,3.81652,2620.2,2619.5,3.8175]
[1723815566082,3.81688,2620.0,2619.4,6.81764]
[1723815566438,2.3204,2620.1,2618.9,3.81832]
[1723815566718,2.3204,2620.1,2618.7,2.4735]
[1723815566719,3.81703,2619.9,2619.2,3.81795]
[1723815566931,6.13717,2620.1,2619.4,3.81765]
[1723815567078,3.81624,2620.4,2618.9,3.81838]
[1723815567079,2.8704,2620.0,2618.9,3.81838]
[1723815567278,3.81768,2619.4,2618.8,3.81845]
[1723815567590,3.81768,2619.4,2618.8,3.81853]
[1723815567795,3.81742,2619.6,2618.3,2.4735]
[1723815567796,3.81746,2619.6,2618.5,3.81894]
[1723815568004,3.81739,2619.6,2619.0,3.81813]
[1723815568234,3.81739,2619.6,2619.0,4.581788]
[1723815568411,2.3204,2620.0,2619.4,3.81765]
[1723815568581,2.3204,2620.0,2619.0,2.4915]
[1723815568781,3.81731,2619.7,2619.1,3.8181]
[1723815569034,3.81746,2619.6,2619.0,2.4915]
[1723815569238,1.9940273,2620.6,2619.0,6.12248]
[1723815569388,2.3371,2620.7,2619.0,6.12248]
[1723815569389,3.81627,2620.4,2619.3,3.8178]
[1723815569583,3.8175,2619.6,2619.0,5.4915]
[1723815569888,3.8175,2619.6,2619.0,9.30965]
[1723815570184,3.81709,2619.8,2619.2,3.81787]
[1723815570432,0.763412,2619.8,2618.6,2.4356]
[1723815570586,3.81804,2619.2,2618.6,3.81881]
[1723815570787,0.381804,2619.1,2618.6,3.81881]
[1723815570982,3.81804,2619.2,2618.4,3.81902]
[1723815571200,2.2781,2619.7,2618.3,3.81924]
[1723815571403,3.81799,2619.2,2618.5,3.81887]
[1723815571684,3.81817,2619.1,2618.5,3.81887]
[1723815571882,3.81817,2619.1,2618.5,7.63775]
[1723815572128,0.22781,2619.6,2618.4,3.8191]
[1723815572350,0.22781,2619.6,2618.5,3.0]
[1723815572548,3.81805,2619.2,2618.6,3.81883]
[1723815572695,0.381805,2619.1,2618.4,3.81902]
[1723815572900,0.381805,2619.1,2618.2,6.25489]
[1723815573125,3.81838,2619.0,2618.3,3.81917]
[1723815573299,3.81838,2619.0,2618.4,3.81903]
[1723815573493,3.81838,2619.0,2618.4,3.81901]
[1723815573724,3.81837,2619.0,2618.4,3.81901]
[1723815574812,3.81835,2619.0,2618.4,3.81901]
[1723815575005,4.814659,2619.0,2618.4,3.81901]
[1723815575231,3.8176,2619.5,2618.6,3.81872]
[1723815575232,3.81785,2619.3,2618.6,3.81872]
[1723815575493,3.81775,2619.4,2618.8,3.81844]
[1723815575874,7.63554,2619.4,2618.8,3.81844]
[1723815576060,3.81775,2619.4,2618.8,3.81844]
[1723815576265,7.86273,2619.6,2618.8,3.81844]
[1723815576468,3.81767,2619.4,2618.8,3.81844]
[1723815576641,3.81767,2619.4,2618.8,7.63687]
[1723815576839,4.04525,2619.6,2618.9,3.81831]
[1723815577064,3.81779,2619.4,2618.8,3.81841]
[1723815577376,7.63553,2619.4,2618.8,3.81841]
[1723815577589,0.954525,2619.5,2618.4,3.81903]
[1723815577872,3.81834,2619.0,2618.4,3.81902]
[1723815578076,3.81818,2619.1,2618.4,3.81902]
[1723815578279,3.81827,2619.0,2618.4,3.81901]
[1723815578838,3.81812,2619.1,2618.4,3.81907]
[1723815579059,0.679013,2619.3,2618.4,3.81903]
[1723815579260,3.81818,2619.1,2618.4,3.81903]
[1723815579492,3.81818,2619.1,2618.5,3.81894]
[1723815579863,3.81807,2619.2,2618.6,3.81875]
[1723815580057,3.81807,2619.2,2618.6,3.81874]
[1723815580258,6.24035,2619.4,2618.6,3.81871]
[1723815580492,3.81803,2619.2,2618.6,7.63745]
[1723815580647,3.81803,2619.2,2618.6,3.81871]
[1723815580994,6.864375,2619.4,2618.6,3.81871]
[1723815581162,4.441775,2619.4,2618.9,3.81838]
[1723815581355,3.81747,2619.6,2619.1,3.81809]
[1723815581690,6.27555,2619.7,2619.1,3.818]
[1723815581889,1.99717951,2619.9,2618.8,2.4382]
[1723815581890,3.81744,2619.6,2618.9,3.81838]
[1723815582092,3.81781,2619.3,2618.8,3.81841]
[1723815582279,3.81766,2619.4,2618.6,6.81873]
[1723815582457,3.81766,2619.4,2618.2,3.81939]
[1723815582458,3.81941,2618.2,2617.8,1.16578495]
[1723815582659,7.63882,2618.2,2617.6,0.77079559]
[1723815582924,3.82014,2617.7,2617.6,0.77079559]
[1723815583188,7.64028,2617.7,2617.6,0.77079559]
[1723815583388,9.181838,2617.7,2617.6,0.77079559]
[1723815584097,13.001978,2617.7,2617.6,0.77079559]
[1723815584251,2.2753,2617.3,2616.6,3.98352007]
[1723815584453,3.8216,2616.7,2616.6,3.98352007]
[1723815585603,7.6432,2616.7,2616.6,3.98352007]
[1723815585958,14.3737,2616.7,2616.6,3.98352007]
[1723815586378,10.5521,2616.7,2616.6,3.98352007]
[1723815586889,7.64408,2616.4,2615.7,4.83935345]
[1723815587096,3.82204,2616.4,2615.7,4.83935345]
[1723815587301,4.87699,2616.6,2615.7,4.83935345]
[1723815587599,3.82178,2616.6,2615.7,9.12196878]
[1723815587805,6.21853,2617.2,2616.0,3.8226]
[1723815587964,6.21853,2617.2,2616.4,3.82193]
[1723815588157,3.82102,2617.1,2616.4,3.82193]
[1723815588379,3.82102,2617.1,2615.8,3.82281]
[1723815588380,3.82118,2617.0,2615.8,3.82281]
[1723815588587,3.82186,2616.6,2615.8,3.82281]
[1723815588792,3.82191,2616.5,2615.8,3.82281]
[1723815589394,3.82161,2616.7,2615.9,3.82274]
[1723815589695,3.82192,2616.5,2615.9,3.82274]
[1723815590258,3.82213,2616.4,2615.7,6.24496]
[1723815590452,3.8223,2616.3,2615.8,3.0]
[1723815590678,3.82192,2616.5,2615.7,3.82296]
[1723815590993,6.17121,2616.9,2616.0,3.8225]
[1723815590994,3.82136,2616.9,2616.0,3.8225]
[1723815591296,3.8217,2616.7,2616.0,3.8225]
[1723815591457,3.82204,2616.4,2615.8,6.82281]
[1723815591792,3.82122,2617.0,2615.8,6.82281]
[1723815591793,3.82176,2616.6,2615.8,6.82281]
[1723815591994,0.382122,2616.9,2615.8,3.0]
[1723815592199,0.382122,2616.9,2615.7,0.682309]
[1723815592200,7.64492,2616.2,2615.7,3.0]
[1723815592356,3.82209,2616.4,2615.6,6.82308]
[1723815592561,3.82223,2616.3,2615.7,0.682308]
[1723815592861,3.82223,2616.3,2615.6,10.64619]
[1723815593185,2.4295,2615.5,2615.0,3.82401]
[1723815593397,2.4295,2615.5,2613.8,3.82583]
[1723815593398,5.135,2615.4,2614.1,3.82534]
[1723815593570,5.135,2615.0,2614.1,0.611354]
[1723815593754,4.58013,2615.3,2613.9,6.11386]
[1723815593957,3.82448,2614.8,2613.9,2.2882]
[1723815594188,0.55,2615.2,2613.9,6.11376]
[1723815594421,3.82452,2614.8,2614.0,3.82554]
[1723815594689,3.82452,2614.8,2614.1,3.82539]
[1723815595107,3.82452,2614.8,2614.0,3.82555]
[1723815595631,0.382452,2614.8,2613.7,3.82585]
[1723815595799,3.82498,2614.4,2613.6,3.82613]
[1723815596128,3.82498,2614.4,2613.5,6.18841]
[1723815596129,3.82513,2614.3,2613.5,6.18841]
[1723815596285,3.82526,2614.2,2613.6,0.63154661]
[1723815596486,3.82505,2614.4,2613.4,0.1270561]
[1723815596728,3.82567,2614.0,2613.4,0.1270561]
[1723815597131,3.82573,2613.9,2613.4,0.1270561]
[1723815597429,0.28987,2614.6,2613.4,0.1270561]
[1723815597636,6.28652,2613.7,2613.4,0.1270561]
[1723815597884,3.82616,2613.6,2613.4,0.1270561]
[1723815598442,6.915172,2613.7,2613.4,0.1270561]
[1723815598443,7.65256,2613.5,2613.4,0.1270561]
[1723815599033,3.82616,2613.6,2613.4,0.1270561]
[1723815599238,3.82596,2613.8,2613.4,0.1270561]
[1723815599433,3.82601,2613.7,2613.4,0.1270561]
[1723815599743,3.82573,2613.9,2613.4,0.1270561]
[1723815599921,0.914892,2614.1,2613.4,0.1270561]
[1723815599922,4.740332,2614.1,2613.4,0.1270561]
[1723815600126,3.8257,2613.9,2613.4,0.1270561]
[1723815600320,4.740322,2614.1,2613.4,0.1270561]
[1723815600532,3.82596,2613.8,2613.4,0.1270561]
[1723815600738,3.82599,2613.7,2613.4,0.1270561]
[1723815600934,3.82596,2613.8,2613.4,0.1270561]
[1723815601434,7.65256,2613.5,2613.4,0.1270561]
[1723815601673,3.82628,2613.5,2613.4,0.1270561]
[1723815602018,7.65256,2613.5,2613.4,0.1270561]
[1723815602447,8.20256,2613.5,2613.4,0.1270561]
[1723815602652,14.38294,2613.5,2613.4,0.1270561]
[1723815602962,16.20385,2613.5,2613.4,0.1270561]
[1723815604026,12.37757,2613.5,2613.4,0.1270561]
[1723815604226,4.740412,2614.1,2613.4,0.1270561]
[1723815604227,3.82605,2613.7,2613.4,0.1270561]
[1723815604431,3.82614,2613.6,2613.4,0.1270561]
[1723815604627,3.82602,2613.7,2613.4,0.1270561]
[1723815605049,7.65256,2613.5,2613.4,0.1270561]
[1723815606255,8.20256,2613.5,2613.4,0.1270561]
[1723815606474,12.02884,2613.5,2613.4,0.1270561]
[1723815606626,14.46514,2613.5,2613.4,0.1270561]
[1723815607070,10.63886,2613.5,2613.4,0.1270561]
[1723815607226,8.20256,2613.5,2613.4,0.1270561]
[1723815607574,9.405417,2613.5,2613.4,0.1270561]
[1723815608268,3.82628,2613.5,2613.4,0.1270561]
[1723815608477,2.3393,2614.3,2613.4,0.1270561]
[1723815608776,3.82522,2614.3,2613.5,6.09698]
[1723815608925,3.82488,2614.5,2613.8,3.82575]
[1723815609142,3.82462,2614.7,2614.0,3.82546]
[1723815609345,3.8243,2614.9,2613.8,0.39022653]
[1723815609655,2.383,2615.2,2613.5,2.2708]
[1723815609656,3.82535,2614.2,2613.5,2.2708]
[1723815609984,3.82538,2614.2,2613.5,2.2708]
[1723815610192,3.82536,2614.2,2613.5,9.09698]
[1723815610356,3.82535,2614.2,2613.5,9.09698]
[1723815610575,3.82505,2614.4,2613.5,5.2708]
[1723815610805,3.82476,2614.6,2613.9,3.82561]
[1723815610958,3.8245,2614.8,2614.1,3.82531]
[1723815611289,3.82324,2615.6,2614.6,3.82465]
[1723815611290,3.82375,2615.3,2614.6,3.82465]
[1723815611445,3.82375,2615.3,2614.2,2.57249726]
[1723815611446,3.82375,2615.3,2614.5,3.82474]
[1723815611648,3.82402,2615.1,2614.5,7.72594536]
[1723815611847,4.205764,2615.5,2614.9,3.82412]
[1723815612046,4.205764,2615.5,2614.6,0.77259454]
[1723815612047,3.82352,2615.4,2614.8,3.82436]
[1723815612282,3.82352,2615.4,2614.7,3.90092742]
[1723815612283,3.82344,2615.5,2614.7,3.82444]
[1723815612441,3.82281,2615.9,2614.7,4.206884]
[1723815612648,3.82281,2615.9,2614.3,3.0]
[1723815612649,3.82341,2615.5,2614.3,3.0]
[1723815612842,6.28296,2616.0,2614.5,3.82478]
[1723815613087,3.82462,2614.7,2614.3,0.2496]
[1723815613244,3.82462,2614.7,2614.3,3.0]
[1723815613582,3.82462,2614.7,2613.7,35.0]
[1723815613583,3.82522,2614.3,2613.9,2.3194]
[1723815613789,0.382462,2614.7,2614.0,3.82554]
[1723815613985,3.82427,2614.9,2614.0,7.88292]
[1723815614151,3.82456,2614.7,2614.0,3.82543]
[1723815614487,0.382427,2614.8,2614.2,3.82524]
[1723815614488,3.82447,2614.8,2614.2,3.82524]
[1723815614684,3.8243,2614.9,2614.3,3.82507]
[1723815614901,3.82432,2614.9,2614.3,3.82507]
[1723815615056,0.54791,2615.3,2614.0,3.82545]
[1723815615057,3.82476,2614.6,2614.0,3.82545]
[1723815615262,3.82444,2614.8,2614.2,3.82517]
[1723815615481,3.82444,2614.8,2614.3,3.382517]
[1723815615793,3.82268,2616.0,2614.3,3.382517]
[1723815615794,3.82222,2616.3,2614.7,6.12879]
[1723815615946,3.82333,2615.6,2614.9,3.8242]
[1723815616147,3.82333,2615.6,2614.9,7.64833]
[1723815616488,3.8233,2615.6,2614.9,3.90060394]
[1723815616646,2.38,2616.2,2614.9,0.61889753]
[1723815616849,3.82287,2615.9,2614.9,0.61889753]
[1723815617078,3.82287,2615.9,2615.0,0.36188975]
[1723815617350,3.82256,2616.1,2615.3,3.82354]
[1723815617553,3.82223,2616.3,2615.5,3.82322]
[1723815617787,3.82179,2616.6,2616.0,3.82253]
[1723815617991,3.82135,2616.9,2615.7,3.82298]
[1723815618193,3.82184,2616.6,2615.8,3.07644642]
[1723815618494,3.82123,2617.0,2616.3,3.82218]
[1723815618685,3.82123,2617.0,2616.2,2.53493661]
[1723815618686,3.82147,2616.8,2616.2,2.53493661]
[1723815618882,4.202701,2617.4,2615.9,6.82269]
[1723815618883,3.82076,2617.3,2615.9,3.0]
[1723815619068,3.82186,2616.6,2615.9,3.0]
[1723815619270,3.82253,2616.1,2615.8,3.0]
[1723815619484,3.82234,2616.2,2615.5,3.82324]
[1723815619690,3.82234,2616.2,2615.6,6.82315]
[1723815619872,3.82209,2616.4,2615.6,6.82315]
[1723815619873,3.82209,2616.4,2615.8,3.82289]
[1723815620053,2.40301004,2616.8,2616.1,3.82248]
[1723815620054,3.82152,2616.8,2616.1,3.82248]
[1723815620258,3.82152,2616.8,2616.1,3.89892124]
[1723815620454,3.82122,2617.0,2616.3,3.82218]
[1723815620694,3.82151,2616.8,2616.2,0.07643664]
[1723815620900,3.82151,2616.8,2616.2,4.63779498]
[1723815621211,4.26929155,2617.4,2615.9,3.0]
[1723815621212,3.82175,2616.6,2615.9,6.82271]
[1723815621360,3.8215,2616.8,2616.1,3.82239]
[1723815621562,3.82078,2617.3,2616.2,0.07643684]
[1723815621792,3.82176,2616.6,2615.9,6.82268]
[1723815622003,3.82102,2617.1,2616.0,3.0]
[1723815622004,3.82193,2616.5,2616.0,3.0]
[1723815622308,3.82138,2616.9,2616.0,3.0]
[1723815622309,3.82168,2616.7,2616.1,3.82236]
[1723815622458,3.82106,2617.1,2616.3,6.19766]
[1723815622658,3.82106,2617.1,2616.4,3.89837976]
[1723815622932,3.82106,2617.1,2616.1,0.6]
[1723815622933,0.764182,2617.1,2616.1,4.42247]
[1723815623201,3.82171,2616.7,2616.2,3.0]
[1723815623410,3.82171,2616.7,2616.1,3.82248]
[1723815623577,3.82139,2616.9,2616.3,3.82216]
[1723815623773,3.82103,2617.1,2616.4,0.07643328]
[1723815624291,3.82103,2617.1,2616.5,3.82179]
[1723815624602,3.82063,2617.4,2616.7,3.82152]
[1723815624786,3.82074,2617.3,2616.7,3.82152]
[1723815624969,3.82105,2617.1,2616.6,2.4082]
[1723815625173,3.82074,2617.3,2616.6,9.22985]
[1723815625392,3.82074,2617.3,2616.7,3.82158]
[1723815625607,3.82103,2617.1,2616.6,5.4082]
[1723815625901,3.82048,2617.5,2616.9,3.82119]
[1723815626212,2.4647,2618.0,2616.9,3.82131]
[1723815626213,3.82068,2617.4,2616.9,3.82131]
[1723815626412,3.81989,2617.9,2616.8,0.07642566]
[1723815626413,3.82042,2617.6,2617.0,3.82116]
[1723815626557,3.82041,2617.6,2616.8,3.82143]
[1723815626765,3.82059,2617.4,2616.9,3.0]
[1723815626962,3.82082,2617.3,2616.9,3.0]
[1723815627262,3.82091,2617.2,2616.7,3.0]
[1723815627462,0.28644061,2617.9,2616.7,3.0]
[1723815627463,3.82116,2617.1,2616.7,3.0]
[1723815627722,3.82178,2616.6,2616.2,2.3025]
[1723815627862,3.82233,2616.3,2615.8,2.3025]
[1723815628059,3.822,2616.5,2615.9,3.82266]
[1723815628315,2.4571,2617.3,2616.0,3.82258]
[1723815628603,2.4571,2617.3,2615.8,6.12535]
[1723815628604,3.82211,2616.4,2615.8,6.12535]
[1723815628772,3.82106,2617.1,2616.0,3.82259]
[1723815628981,3.82177,2616.6,2616.0,4.435059]
[1723815629309,3.82106,2617.1,2616.4,3.82198]
[1723815629460,3.82118,2617.0,2616.4,3.82194]
[1723815629813,3.82146,2616.8,2616.0,3.82261]
[1723815630017,0.382096,2617.1,2615.9,6.17902]
[1723815630314,3.82047,2617.5,2616.2,3.82231]
[1723815630525,3.82139,2616.9,2616.3,3.0]
[1723815630696,7.64224,2617.1,2616.4,3.82201]
[1723815630864,3.82066,2617.4,2616.3,3.0]
[1723815631067,7.64283,2616.9,2616.3,3.0]
[1723815631259,7.64283,2616.9,2616.3,6.82214]
[1723815631260,3.82139,2616.9,2616.3,6.82214]
[1723815631619,3.82112,2617.1,2616.4,3.82196]
[1723815631814,3.82074,2617.3,2616.7,3.82152]
[1723815631972,3.8207,2617.4,2616.6,6.23841]
[1723815632170,3.8207,2617.4,2616.8,0.07128075]
[1723815632171,3.82088,2617.2,2616.8,0.07128075]
[1723815632409,3.8207,2617.4,2616.7,0.07642591]
[1723815632708,3.82083,2617.3,2616.8,0.07128075]
[1723815632917,3.82119,2617.0,2616.8,0.07128075]
[1723815633078,3.82094,2617.2,2616.6,3.82172]
[1723815633264,3.82064,2617.4,2616.8,3.82137]
[1723815633470,3.82064,2617.4,2616.8,0.682137]
[1723815633671,3.82073,2617.3,2616.9,0.07118785]
[1723815633903,3.82073,2617.3,2616.7,6.82152]
[1723815633904,3.82073,2617.3,2616.8,3.82145]
[1723815634217,3.82073,2617.3,2616.9,0.07118472]
[1723815634383,3.82088,2617.2,2616.9,0.07118472]
[1723815634576,3.82088,2617.2,2616.7,3.0]
[1723815634758,3.82073,2617.3,2617.0,0.07115139]
[1723815634958,3.82073,2617.3,2616.7,3.0]
[1723815634959,4.584856,2617.3,2616.7,3.0]
[1723815635215,4.584856,2617.3,2616.4,6.22414]
[1723815635216,7.64255,2617.0,2616.5,3.0]
[1723815635418,3.82004,2617.8,2615.5,2.4739]
[1723815635419,3.82286,2615.9,2615.5,2.4739]
[1723815635708,3.82286,2615.9,2615.1,3.82385]
[1723815635709,7.64599,2615.8,2615.2,2.2617]
[1723815635919,3.82316,2615.7,2615.2,2.2617]
[1723815636206,2.3624,2616.2,2615.2,2.2617]
[1723815636207,7.64662,2615.6,2615.2,2.2617]
[1723815636408,7.64603,2615.8,2615.2,2.2617]
[1723815636613,3.82321,2615.6,2615.2,2.2617]
[1723815636795,3.8227,2616.0,2615.2,2.2617]
[1723815636976,3.82294,2615.8,2615.2,2.2617]
[1723815637363,3.82316,2615.7,2615.2,2.2617]
[1723815637708,3.82294,2615.8,2615.2,2.2617]
[1723815637910,3.82332,2615.6,2614.9,3.82422]
[1723815638128,3.82336,2615.5,2614.8,2.4994]
[1723815638444,0.382294,2615.8,2613.7,0.74949911]
[1723815638445,3.82381,2615.2,2614.4,2.3328]
[1723815638846,3.82381,2615.2,2614.5,3.8247]
[1723815639123,3.82381,2615.2,2614.4,2.3328]
[1723815639124,3.8242,2615.0,2614.4,2.3328]
[1723815639347,3.82357,2615.4,2614.4,2.56608]
[1723815639537,3.82293,2615.8,2614.6,3.82463]
[1723815639704,3.82332,2615.6,2614.8,3.82426]
[1723815639888,3.82348,2615.5,2614.8,3.82426]
[1723815640084,3.82361,2615.4,2614.7,3.382463]
[1723815640383,3.82361,2615.4,2614.7,7.206983]
[1723815640598,3.82361,2615.4,2614.7,3.382463]
[1723815640803,3.82361,2615.4,2614.6,6.82459]
[1723815641124,3.82326,2615.6,2614.8,3.82429]
[1723815641284,0.382326,2615.6,2614.6,3.0]
[1723815641484,3.8238,2615.2,2614.5,6.82481]
[1723815641683,3.82357,2615.4,2614.6,0.06264245]
[1723815641899,3.8239,2615.2,2614.6,1.3671527]
[1723815642100,0.06664096,2615.8,2615.2,3.82366]
[1723815642301,0.06664096,2615.8,2615.3,0.06254059]
[1723815642514,3.8235,2615.4,2615.3,0.06254059]
[1723815642714,3.8235,2615.4,2614.6,3.82456]
[1723815642715,3.82379,2615.3,2614.7,3.0]
[1723815643025,3.82379,2615.3,2614.8,0.06261334]
[1723815643382,3.8235,2615.4,2614.8,0.06261334]
[1723815644127,4.20604,2615.3,2614.8,0.06261334]